fUST/lending_fUST_20241012
["ID","MTS","AMOUNT","RATE_DAILY","PERIOD"]
[340141450,1728676240985,-1936.01873658,0.000499,2]
[340141451,1728676240994,-353.35,0.0004996,30]
[340141452,1728676241004,-13491.8759287,0.0004996,7]
[340141453,1728676241014,-1275.53178286,0.0004996,7]
[340141454,1728676241023,-13491.8759287,0.0004997,7]
[340141455,1728676241033,-1275.53178286,0.0004997,7]
[340141456,1728676241044,-500.0,0.00049973,10]
[340141457,1728676241056,-244.45746213,0.00049973,10]
[340141458,1728676241067,-40475.6277862,0.0004998,7]
[340141459,1728676241076,-3826.59534858,0.0004998,7]
[340141460,1728676241087,-182.67018699,0.00049989,120]
[340141461,1728676241096,-617.73834931,0.00049989,120]
[340141462,1728676241106,-199.91392375,0.00049989,31]
[340141463,1728676241115,-500.0,0.00049989,120]
[340141464,1728676241125,-500.0,0.00049989,120]
[340141465,1728676241135,-163.18763877,0.00049989,120]
[340141466,1728676241144,-186.16829413,0.00049989,120]
[340141467,1728676241155,-13491.8759287,0.0004999,7]
[340141468,1728676241164,-1275.53178286,0.0004999,7]
[340141469,1728676241174,-121426.883359,0.0004999,7]
[340141470,1728676241183,-16581.9131772,0.0004999,7]
[340141471,1728676241193,-151.0,0.0004999,120]
[340141472,1728676241202,-151.0,0.0004999,120]
[340141473,1728676241211,-256.343512,0.0004999,120]
[340141474,1728676241221,-256.343512,0.0004999,120]
[340141475,1728676241232,-34031.52804329,0.0005,63]
[340141476,1728676241243,-15809.95963125,0.0005,84]
[340141477,1728676241256,-1696.22,0.0005,30]
[340141478,1728676241266,-150.112233,0.0005,16]
[340141479,1728676241276,-150.112233,0.0005,16]
[340141480,1728676241285,-150.112233,0.0005,12]
[340141481,1728676241294,-150.112233,0.0005,10]
[340141482,1728676241305,-3000.0,0.0005,120]
[340141483,1728676241314,-226.15,0.0005,2]
[340141484,1728676241323,-2053.186,0.0005,120]
[340141485,1728676241333,-2053.187,0.0005,120]
[340141486,1728676241342,-2053.187,0.0005,120]
[340141487,1728676241352,-2053.187,0.0005,120]
[340141488,1728676241361,-2053.187,0.0005,120]
[340141489,1728676241372,-151.0,0.0005,3]
[340141490,1728676241382,-151.0,0.0005,120]
[340141491,1728676241392,-151.0,0.0005,120]
[340141492,1728676241402,-151.0,0.0005,120]
[340141493,1728676241413,-50246.82002396,0.0005,120]
[340141494,1728676241426,-136769.14866939,0.0005,120]
[340141518,1728676243499,-262.63,0.0004997,10]
[340141521,1728676243510,-1412.9386679,0.0005,120]
[340141523,1728676243523,-869.94591213,0.0005,120]
[340141525,1728676243536,-330.29329238,0.0005,120]
[340141527,1728676243548,-995.76253536,0.0005,120]
[340141793,1728676246023,165.0,0.00047,90]
[340141830,1728676246499,-1813.47793121,0.0005,120]
[340141833,1728676246514,-3362.7729093,0.0005,120]
[340142079,1728676284489,500.06714848,0.00042956,2]
[340142081,1728676446588,3100.32347839,0.0003201,2]
[340142082,1728676525120,174.686285,0.00026986,2]
[340142083,1728677069989,167.8710773,0.00026986,2]
[340142084,1728677254151,-181.24591419,0.00036955,2]
[340142086,1728677349191,-400.0,0.00036914,2]
[340142087,1728677349213,-400.0,0.00036914,2]
[340142088,1728677349236,-6133.80230685,0.00036915,2]
[340142089,1728677352146,-18766.19769315,0.00036915,2]
[340142090,1728677352167,-42.75408581,0.00036955,2]
[340142091,1728677352191,-288.1931516,0.0003696,2]
[340142092,1728677352213,-294.784655,0.00037017,2]
[340142093,1728677352235,-168.101111,0.00037338,2]
[340142094,1728677352377,-168.0,0.0003743,2]
[340142095,1728677352415,-168.101111,0.00037727,2]
[340142096,1728677352440,-168.101111,0.00038116,2]
[340142097,1728677352463,-168.101111,0.00038506,2]
[340142098,1728677352491,-155.71,0.000388,31]
[340142099,1728677352516,-6.18241744,0.000388,31]
[340142100,1728677363118,-3063.78275562,0.000372,103]
[340142101,1728677363147,-149.52758256,0.000388,31]
[340142102,1728677363168,-168.101111,0.00038895,2]
[340142103,1728677363188,-168.101111,0.00039284,2]
[340142104,1728677363209,-560.0,0.00039501,5]
[340142105,1728677363230,-486.0,0.00040605,30]
[340142106,1728677363251,-3987.49229899,0.0004201,28]
[340142107,1728677363271,-3063.7827556,0.00042068,120]
[340142108,1728677363291,-7946.40674813,0.00042108,2]
[340142109,1728677363311,-176.71547701,0.0004211,30]
[340142110,1728677363332,-347.0,0.0004227,5]
[340142111,1728677363352,-755.37711262,0.00043699,2]
[340142112,1728677363376,-155.71,0.00044,36]
[340142113,1728677363400,-155.71,0.00044,36]
[340142114,1728677363423,-155.71,0.00044,36]
[340142115,1728677363445,-155.71,0.00044,36]
[340142116,1728677363465,-3987.49229898,0.00044536,28]
[340142117,1728677363486,-400.0,0.00044658,2]
[340142118,1728677363506,-755.3771126,0.00045247,2]
[340142119,1728677363528,-158.084,0.00046634,77]
[340142120,1728677363554,-755.3771126,0.00046795,2]
[340142121,1728677363576,-153.0,0.00046974,120]
[340142122,1728677363600,-153.0,0.00046974,120]
[340142123,1728677363620,-153.0,0.00046974,120]
[340142124,1728677363642,-153.0,0.00046974,120]
[340142125,1728677363667,-3987.49229898,0.00047063,28]
[340142126,1728677363686,-755.3771126,0.00048342,2]
[340142127,1728677363711,-155.71,0.000491,45]
[340142128,1728677363734,-155.71,0.000491,45]
[340142129,1728677363756,-155.71,0.000491,45]
[340142130,1728677363780,-155.71,0.000491,45]
[340142131,1728677363801,-153.0,0.00049186,120]
[340142132,1728677363822,-153.0,0.00049186,120]
[340142133,1728677363844,-153.0,0.00049186,120]
[340142134,1728677363864,-153.0,0.00049186,120]
[340142135,1728677363885,-153.0,0.00049186,120]
[340142136,1728677363906,-153.0,0.00049186,120]
[340142137,1728677363928,-153.0,0.00049186,120]
[340142138,1728677363949,-153.0,0.00049186,120]
[340142139,1728677363969,-153.0,0.00049186,120]
[340142140,1728677363989,-153.0,0.00049186,120]
[340142141,1728677364010,-153.0,0.00049186,120]
[340142142,1728677364030,-153.0,0.00049186,120]
[340142143,1728677364050,-153.0,0.00049186,120]
[340142144,1728677364069,-153.0,0.00049186,120]
[340142145,1728677364089,-143.76901261,0.00049186,120]
[340142146,1728677369203,-3063.7827556,0.00047282,120]
[340142147,1728677369226,-9.23098739,0.00049186,120]
[340142148,1728677369250,-153.0,0.00049186,120]
[340142149,1728677369273,-153.0,0.00049186,120]
[340142150,1728677369296,-153.0,0.00049186,120]
[340142151,1728677369320,-153.0,0.00049186,120]
[340142152,1728677369343,-153.0,0.00049186,120]
[340142153,1728677369364,-153.0,0.00049186,120]
[340142154,1728677369386,-153.0,0.00049186,120]
[340142155,1728677369410,-153.0,0.00049186,120]
[340142156,1728677369433,-153.0,0.00049186,120]
[340142157,1728677369457,-153.0,0.00049186,120]
[340142158,1728677369601,-153.0,0.00049186,120]
[340142159,1728677369625,-153.0,0.00049186,120]
[340142160,1728677369651,-153.0,0.00049186,120]
[340142161,1728677369672,-153.0,0.00049186,120]
[340142162,1728677369696,-153.0,0.00049186,120]
[340142163,1728677369720,-153.0,0.00049186,120]
[340142164,1728677369742,-153.0,0.00049186,120]
[340142170,1728677386819,153.0,0.00049186,120]
[340142171,1728677391548,153.0,0.00049186,120]
[340142172,1728677391763,153.0,0.00049186,120]
[340142178,1728677423576,176.71547701,0.00049186,60]
[340142205,1728677432562,-207.32332744,0.0004939,2]
[340142207,1728677432574,-207.32332741,0.00049397,2]
[340142208,1728677432583,-207.32332741,0.00049404,2]
[340142210,1728677432593,-34.2751065,0.0004941,2]
[340142211,1728677432613,-173.04822091,0.0004941,2]
[340142212,1728677432624,-207.32332741,0.00049417,2]
[340142213,1728677432635,-458.11,0.0004948,30]
[340142214,1728677432646,-285.73558533,0.0004948,30]
[340142215,1728677432660,-96.02441467,0.0004948,30]
[340142216,1728677432669,-318.14,0.0004948,30]
[340142217,1728677432679,-265.11,0.0004948,30]
[340142218,1728677432690,-265.11,0.0004948,30]
[340142219,1728677432705,-176.74,0.0004948,30]
[340142220,1728677432716,-271.38,0.0004948,10]
[340142221,1728677432727,-500.0,0.00049489,120]
[340142222,1728677432739,-592.52364784,0.00049489,120]
[340142223,1728677436117,168.0,0.0004138,2]
[340142256,1728677438936,-883.74,0.0004948,30]
[340142258,1728677438947,-22.53502971,0.00049489,120]
[340142260,1728677438958,-23925.84314002,0.0004949,7]
[340142285,1728677439172,-2716.4946845,0.0004949,7]
[340142314,1728677440958,-226.15,0.0004948,10]
[340142315,1728677440968,-392.31,0.0004949,7]
[340142316,1728677440981,-73018.53334548,0.0004949,7]
[340142317,1728677440991,-13346.2586867,0.0004949,7]
[340142318,1728677441002,-500.0,0.00049499,120]
[340142319,1728677441012,-500.0,0.00049499,120]
[340142320,1728677441022,-182.67018699,0.00049499,120]
[340142321,1728677441033,-500.0,0.00049499,120]
[340142322,1728677441044,-284.07673968,0.00049499,120]
[340142323,1728677441056,-275.21605597,0.00049499,120]
[340142324,1728677441067,-199.91392375,0.00049499,31]
[340142325,1728677441078,-228.37119476,0.00049499,120]
[340142326,1728677441087,-28029.6888574,0.000495,2]
[340142327,1728677441097,-248649.7374636,0.000495,2]
[340142328,1728677441107,-400.0,0.00049517,2]
[340142329,1728677441116,-168.0,0.0004981,7]
[340142330,1728677441125,-196.0,0.0004981,30]
[340142331,1728677441137,-642.59142389,0.0004987,120]
[340142332,1728677441148,-1936.01873658,0.0004988,2]
[340142333,1728677441157,-16675.530195,0.0004988,7]
[340142334,1728677441167,-2224.37644778,0.0004988,7]
[340142335,1728677441176,-25570.31305413,0.0004989,120]
[340142336,1728677441186,-500.0,0.00049973,10]
[340142337,1728677441195,-500.0,0.00049973,10]
[340142338,1728677441205,-500.0,0.00049973,10]
[340142339,1728677441214,-500.0,0.00049973,10]
[340142340,1728677441224,-500.0,0.00049973,10]
[340142341,1728677441234,-244.45746213,0.00049973,10]
[340142342,1728677441243,-16675.530195,0.0004998,7]
[340142343,1728677441252,-2224.37644778,0.0004998,7]
[340142344,1728677441262,-66702.1207799,0.0004998,7]
[340142345,1728677441271,-8897.50579112,0.0004998,7]
[340142346,1728677441281,-16675.530195,0.0004999,7]
[340142347,1728677441290,-2224.37644778,0.0004999,7]
[340142348,1728677441300,-15570.6351345,0.0004999,7]
[340142349,1728677441310,-151.0,0.0004999,120]
[340142350,1728677441319,-151.0,0.0004999,120]
[340142351,1728677441329,-151.0,0.0004999,120]
[340142352,1728677441338,-35028.84590464,0.0005,63]
[340142353,1728677441348,-17735.53664012,0.0005,84]
[340142354,1728677441358,-19518.41545024,0.0005,120]
[340142362,1728677443768,-10426.25822785,0.0005,120]
[340142372,1728677446299,174.0,0.00048,90]
[340142374,1728677446546,160.0,0.00047,90]
[340142377,1728677447283,201.0,0.00048,90]
[340142378,1728677468367,500.0,0.00021918,30]
[340142379,1728677468827,500.0,0.00021918,30]
[340142380,1728677469276,500.0,0.00021918,30]
[340142381,1728677469745,500.0,0.00021918,30]
[340142382,1728677470200,500.0,0.00021918,30]
[340142383,1728677470624,517.67734433,0.00021918,30]
[340142384,1728677539803,342.44700329,0.0003701,2]
[340142385,1728677546586,177.0,0.00048,90]
[340142386,1728677548338,299.8457639,0.0003845,2]
[340142391,1728677799842,172.522719,0.00026986,2]
[340142394,1728678299317,172.522719,0.00026986,2]
[340142395,1728678349147,-153.13,0.000388,31]
[340142396,1728678349173,-153.13,0.000388,31]
[340142397,1728678349201,-153.13,0.000388,31]
[340142398,1728678349234,-153.13,0.000388,31]
[340142399,1728678349267,-153.13,0.000388,31]
[340142400,1728678349292,-166.666666,0.00040917,2]
[340142401,1728678349315,-550.0,0.00041311,5]
[340142402,1728678349338,-1348.2493428,0.00041313,2]
[340142403,1728678349362,-1431.75458793,0.00041422,120]
[340142404,1728678349386,-178.650383,0.00041522,2]
[340142405,1728678349409,-2328.65454047,0.00041636,2]
[340142411,1728678436128,-374.5878327,0.00041635,5]
[340142416,1728678497753,10000.0,0.00021,5]
[340142417,1728678499943,856.21055011,0.00029,2]
[340142418,1728678520825,1035.07618938,0.00025,2]
[340142419,1728678521552,525.60867357,0.00026,2]
[340142420,1728678524837,202.4262271,0.00025,2]
[340142421,1728678524870,164.67825453,0.00025,2]
[340142422,1728678525215,507.39380618,0.00025,2]
[340142423,1728678525297,344.9732944,0.00025,2]
[340142424,1728678526041,823.68647264,0.00025,2]
[340142425,1728678545130,-2358.8294088,0.00033,2]
[340142426,1728678545161,-550.0,0.00042676,5]
[340142427,1728678545189,-5734.69967448,0.00042677,2]
[340142428,1728678548373,-4222.40646482,0.00042677,2]
[340142429,1728678548404,-172.609427,0.00042997,2]
[340142430,1728678548435,-153.13,0.00044,36]
[340142431,1728678548467,-153.13,0.00044,36]
[340142432,1728678548497,-153.13,0.00044,36]
[340142433,1728678548525,-153.13,0.00044,36]
[340142434,1728678548557,-153.13,0.00044,36]
[340142435,1728678548587,-153.13,0.00044,36]
[340142436,1728678548621,-153.13,0.00044,36]
[340142437,1728678548797,-153.13,0.00044,36]
[340142438,1728678548824,-153.13,0.00044,36]
[340142439,1728678548846,-153.13,0.00044,36]
[340142440,1728678548867,-172.609427,0.00044118,2]
[340142441,1728678548893,-400.0,0.00044658,2]
[340142442,1728678549050,1392.69531893,0.00042576,120]
[340142443,1728678557126,-172.609427,0.00045238,2]
[340142444,1728678557147,-23941.27152331,0.00046,60]
[340142445,1728678557168,-1392.69531893,0.00046357,120]
[340142446,1728678557187,-160.0,0.00047,90]
[340142447,1728678557208,-160.0,0.00048904,90]
[340142448,1728678557229,-252.0,0.000491,2]
[340142449,1728678557254,-153.13,0.000491,45]
[340142450,1728678557277,-153.13,0.000491,45]
[340142451,1728678557300,-153.13,0.000491,45]
[340142452,1728678557322,-153.13,0.000491,45]
[340142453,1728678557344,-153.13,0.000491,45]
[340142454,1728678557369,-153.13,0.000491,45]
[340142455,1728678557391,-153.13,0.000491,45]
[340142456,1728678557416,-153.13,0.000491,45]
[340142457,1728678557438,-153.13,0.000491,45]
[340142458,1728678557461,-153.13,0.000491,45]
[340142459,1728678557484,-280.49555478,0.00049167,7]
[340142460,1728678557505,-500.0,0.00049167,10]
[340142461,1728678557530,-158.084,0.0004929,86]
[340142462,1728678558488,500.0,0.00049167,10]
[340142463,1728678574627,243.2288028,0.00049167,7]
[340142468,1728678625932,213.14065473,0.00049167,60]
[340142503,1728678631717,-153.0,0.00049341,120]
[340142505,1728678631729,-153.0,0.00049341,120]
[340142507,1728678631742,-153.0,0.00049341,120]
[340142508,1728678631752,-153.0,0.00049341,120]
[340142509,1728678631761,-153.0,0.00049341,120]
[340142510,1728678631770,-177.30047508,0.000494,2]
[340142511,1728678631779,-6869.12405203,0.0004942,2]
[340142512,1728678631788,-2043.63159261,0.000495,2]
[340142535,1728678638362,-17048.42003353,0.000495,2]
[340142536,1728678638408,-252.068897,0.000495,2]
[340142537,1728678638425,-1405.81355063,0.000495,2]
[340142538,1728678638437,-2442.6408797,0.000495,2]
[340142539,1728678638448,-11086.35767979,0.000495,2]
[340142540,1728678638459,-7075.05644212,0.000495,2]
[340142541,1728678638471,-150.0,0.00049511,2]
[340142542,1728678638483,-400.0,0.00049517,2]
[340142543,1728678638493,-1019.55144254,0.000496,2]
[340142544,1728678638503,-6869.12405203,0.00049737,2]
[340142545,1728678638514,-150.0,0.00049817,2]
[340142546,1728678638524,-188.46,0.0004987,10]
[340142547,1728678638533,-239.86,0.0004987,30]
[340142548,1728678638543,-157.05,0.0004987,10]
[340142549,1728678638552,-785.28,0.0004987,10]
[340142550,1728678638563,-12640.28496997,0.0004988,7]
[340142551,1728678638575,-38156.80462653,0.0004988,7]
[340142552,1728678638586,-4600.71243831,0.0004988,7]
[340142553,1728678638595,-509.85983633,0.00049889,120]
[340142554,1728678638605,-548.85371777,0.00049889,120]
[340142555,1728678638616,-542.65123918,0.00049889,120]
[340142556,1728678638627,-72702.02238849,0.0004989,120]
[340142557,1728678638640,-16185.97761151,0.0004989,120]
[340142558,1728678638653,-150.0,0.000499,2]
[340142559,1728678638663,-150.112233,0.000499,16]
[340142560,1728678638674,-150.112233,0.000499,15]
[340142561,1728678638683,-1742.41686294,0.000499,2]
[340142562,1728678638693,-16932.3631988,0.0004996,7]
[340142563,1728678638703,-1533.57081277,0.0004996,7]
[340142564,1728678638712,-920.8409068,0.0004997,7]
[340142565,1728678638724,-13077.01790672,0.0004997,7]
[340142579,1728678639767,-19866.86758418,0.0004997,7]
[340142580,1728678639780,-3067.14162554,0.0004997,7]
[340142581,1728678639791,-500.0,0.00049973,10]
[340142582,1728678639803,-175.3316164,0.00049973,10]
[340142583,1728678639813,-482.64152886,0.00049973,10]
[340142584,1728678639822,-500.0,0.00049973,10]
[340142585,1728678639832,-501.79517388,0.00049973,10]
[340142586,1728678639842,-207.42547338,0.00049973,10]
[340142587,1728678639851,-500.0,0.00049973,10]
[340142588,1728678639860,-16932.3631988,0.0004998,7]
[340142589,1728678639870,-1533.57081277,0.0004998,7]
[340142590,1728678639880,-16932.3631988,0.0004998,7]
[340142591,1728678639890,-1533.57081277,0.0004998,7]
[340142592,1728678639901,-2859.59261963,0.0004999,7]
[340142606,1728678643577,-14072.77057917,0.0004999,7]
[340142607,1728678643589,-1533.57081277,0.0004999,7]
[340142608,1728678643598,-157.619891,0.0004999,120]
[340142609,1728678643609,-151.0,0.0004999,120]
[340142610,1728678643624,-151.0,0.0004999,30]
[340142611,1728678643635,-201.039064,0.0004999,120]
[340142612,1728678643646,-201.039064,0.0004999,120]
[340142613,1728678643658,-151.0,0.0004999,120]
[340142614,1728678643670,-151.0,0.0004999,120]
[340142615,1728678643682,-67729.4527954,0.0004999,7]
[340142616,1728678643694,-16869.2789405,0.0004999,7]
[340142617,1728678643704,-341.001335,0.0004999,120]
[340142618,1728678643713,-341.001335,0.0004999,120]
[340142619,1728678643723,-341.001335,0.0004999,120]
[340142620,1728678643731,-341.001335,0.0004999,120]
[340142621,1728678643741,-375.180952,0.0004999,30]
[340142622,1728678643751,-375.180952,0.0004999,30]
[340142623,1728678643760,-375.180952,0.0004999,30]
[340142624,1728678643770,-375.180952,0.0004999,30]
[340142625,1728678643780,-174.79921461,0.00049999,120]
[340142626,1728678643789,-6706.07265177,0.00049999,120]
[340142627,1728678643888,-1000.0,0.00049999,120]
[340142628,1728678643900,-20902.41450667,0.0005,63]
[340142629,1728678643910,-8867.76832007,0.0005,84]
[340142630,1728678643920,-1000.0,0.0005,120]
[340142631,1728678643929,-153.0,0.0005,30]
[340142632,1728678643938,-153.0,0.0005,30]
[340142633,1728678643948,-153.0,0.0005,30]
[340142634,1728678643958,-153.0,0.0005,30]
[340142635,1728678643967,-160809.12638028,0.0005,120]
[340142636,1728678643976,-1000000.0,0.0005,120]
[340142637,1728678643986,-1625.39,0.0005,30]
[340142638,1728678643995,-50246.82,0.0005,120]
[340142639,1728678644005,-150.112233,0.0005,16]
[340142640,1728678644014,-150.112233,0.0005,15]
[340142641,1728678644023,-150.112233,0.0005,10]
[340142642,1728678644033,-154.612229,0.0005,12]
[340142643,1728678644042,-150.112233,0.0005,10]
[340142644,1728678644052,-150.112233,0.0005,16]
[340142645,1728678644062,-150.112239,0.0005,16]
[340142646,1728678644072,-150.112234,0.0005,16]
[340142647,1728678644082,-279.74,0.0005,2]
[340142648,1728678644091,-257.8013,0.0005,120]
[340142649,1728678644102,-2053.186,0.0005,120]
[340142650,1728678644112,-2053.187,0.0005,120]
[340142651,1728678644122,-2053.187,0.0005,120]
[340142652,1728678644132,-2053.187,0.0005,120]
[340142653,1728678644142,-2053.187,0.0005,120]
[340142654,1728678644152,-212.574882,0.0005,120]
[340142655,1728678644162,-212.574882,0.0005,120]
[340142656,1728678644172,-212.574882,0.0005,120]
[340142657,1728678644181,-212.574882,0.0005,120]
[340142658,1728678644191,-151.0,0.0005,3]
[340142659,1728678644200,-151.0,0.0005,3]
[340142660,1728678644209,-151.0,0.0005,120]
[340142661,1728678644219,-151.0,0.0005,120]
[340142662,1728678644228,-150.112233,0.0005,15]
[340142663,1728678644238,-151.0,0.0005,120]
[340142664,1728678644247,-150.112233,0.0005,15]
[340142665,1728678644258,-150.112233,0.0005,12]
[340142666,1728678644267,-151.0,0.0005,120]
[340142667,1728678644277,-150.112233,0.0005,10]
[340142668,1728678644286,-150.112233,0.0005,12]
[340142669,1728678644295,-150.112233,0.0005,11]
[340142670,1728678644306,-175.998541,0.0005,120]
[340142671,1728678644317,-175.998541,0.0005,120]
[340142672,1728678644327,-151.0,0.0005,120]
[340142673,1728678644337,-151.0,0.0005,120]
[340142674,1728678644346,-153.672251,0.0005,120]
[340142675,1728678644355,-151.0,0.0005,120]
[340142676,1728678644365,-151.0,0.0005,120]
[340142677,1728678644374,-151.0,0.0005,120]
[340142678,1728678644383,-151.0,0.0005,120]
[340142679,1728678644392,-151.0,0.0005,120]
[340142680,1728678644401,-151.0,0.0005,120]
[340142681,1728678644411,-151.0,0.0005,120]
[340142682,1728678644422,-151.0,0.0005,120]
[340142683,1728678644435,-256.343512,0.0005,120]
[340142684,1728678644444,-256.343512,0.0005,120]
[340142685,1728678644453,-256.343512,0.0005,120]
[340142686,1728678644464,-256.343512,0.0005,120]
[340142687,1728678644474,-151.0,0.0005,120]
[340142688,1728678644484,-151.0,0.0005,120]
[340142689,1728678644493,-151.0,0.0005,30]
[340142690,1728678644503,-151.0,0.0005,30]
[340142691,1728678644513,-201.039064,0.0005,120]
[340142692,1728678644522,-201.039064,0.0005,120]
[340142693,1728678644532,-201.039064,0.0005,120]
[340142694,1728678644541,-201.039064,0.0005,120]
[340142695,1728678644551,-151.0,0.0005,120]
[340142696,1728678644560,-151.0,0.0005,120]
[340142697,1728678644569,-151.0,0.0005,120]
[340142698,1728678644579,-151.0,0.0005,120]
[340142699,1728678644588,-341.001335,0.0005,120]
[340142700,1728678644597,-341.001335,0.0005,120]
[340142701,1728678644606,-341.001335,0.0005,120]
[340142702,1728678644615,-341.001335,0.0005,120]
[340142703,1728678644624,-341.001335,0.0005,120]
[340142704,1728678644634,-341.001335,0.0005,120]
[340142705,1728678644643,-375.180952,0.0005,30]
[340142706,1728678644651,-375.180952,0.0005,30]
[340142707,1728678644661,-375.180952,0.0005,30]
[340142708,1728678644669,-375.180952,0.0005,30]
[340142709,1728678644679,-375.180952,0.0005,30]
[340142710,1728678644689,-151.0,0.0005,120]
[340142711,1728678644701,-375.180952,0.0005,30]
[340142712,1728678644711,-151.0,0.0005,120]
[340142713,1728678644721,-151.0,0.0005,120]
[340142714,1728678644731,-151.0,0.0005,120]
[340142715,1728678644742,-151.0,0.0005,120]
[340142716,1728678644752,-151.0,0.0005,120]
[340142717,1728678644762,-151.0,0.0005,120]
[340142718,1728678644773,-151.0,0.0005,120]
[340142719,1728678644785,-395.995206,0.0005,120]
[340142720,1728678644796,-395.995206,0.0005,120]
[340142721,1728678644807,-395.995206,0.0005,120]
[340142722,1728678644817,-395.995206,0.0005,120]
[340142723,1728678644829,-1392.69531893,0.00050138,120]
[340142724,1728678644840,-151.32664007,0.00050179,2]
[340142725,1728678644850,-6869.12405203,0.00050256,2]
[340142726,1728678644859,-507.96395165,0.00050537,10]
[340142727,1728678644868,-6869.12405203,0.00050643,2]
[340142728,1728678644877,-150.0,0.000509,2]
[340142729,1728678644889,-151.33299289,0.00050973,10]
[340142730,1728678644901,-500.0,0.00050973,7]
[340142731,1728678644913,-502.91813906,0.00050973,10]
[340142732,1728678644926,-575.99229912,0.00050973,10]
[340142733,1728678644935,-500.0,0.00050973,10]
[340142734,1728678644945,-500.0,0.00050973,10]
[340142735,1728678644954,-1000000.0,0.00051,120]
[340142736,1728678644964,-212.574882,0.00051,120]
[340142737,1728678644974,-212.574882,0.00051,120]
[340142738,1728678644983,-151.0,0.00051,3]
[340142739,1728678644992,-151.0,0.00051,120]
[340142740,1728678645001,-3000.0,0.00051,85]
[340142741,1728678645011,-175.998541,0.00051,120]
[340142742,1728678645020,-175.998541,0.00051,120]
[340142743,1728678645030,-151.0,0.00051,120]
[340142744,1728678645039,-251.334001,0.00051,120]
[340142745,1728678645048,-151.0,0.00051,120]
[340142746,1728678645058,-151.0,0.00051,120]
[340142747,1728678645068,-151.0,0.00051,120]
[340142748,1728678645078,-151.046111,0.00051,120]
[340142749,1728678645089,-256.343512,0.00051,120]
[340142750,1728678645099,-256.343512,0.00051,120]
[340142751,1728678645109,-154.023872,0.00051,120]
[340142752,1728678645119,-151.0,0.00051,30]
[340142753,1728678645128,-201.039064,0.00051,120]
[340142754,1728678645138,-201.039064,0.00051,120]
[340142755,1728678645147,-151.0,0.00051,120]
[340142756,1728678645157,-176.18483316,0.00051,120]
[340142757,1728678645168,-341.001335,0.00051,120]
[340142758,1728678645179,-341.001335,0.00051,120]
[340142759,1728678645189,-375.180952,0.00051,30]
[340142760,1728678645198,-375.180952,0.00051,30]
[340142761,1728678645209,-151.0,0.00051,120]
[340142762,1728678645218,-151.0,0.00051,120]
[340142763,1728678645229,-151.0,0.00051,120]
[340142764,1728678645239,-151.0,0.00051,120]
[340142765,1728678645249,-395.995206,0.00051,120]
[340142766,1728678645258,-395.995206,0.00051,120]
[340142767,1728678645268,-5850.0,0.0005101,85]
[340142768,1728678645277,-1000.0,0.00051342,10]
[340142769,1728678645286,-500.0,0.00051342,10]
[340142770,1728678645296,-1742.41686285,0.00051622,2]
[340142771,1728678645305,-151.0,0.00051646,60]
[340142772,1728678645315,-1219.0,0.00051699,120]
[340142773,1728678645325,-161.254,0.00051699,120]